Cogmind - Beta 14 *** ADVENTURER MODE // 2024.08.08 @ 07:26:40 Player: Jefffff Result: Destroyed by WL-D3X(R) with Subdweller Laser Performance ------------- Evolutions (0) 0 Regions Visited (2) 400 Robots Destroyed (24) 120 Value Destroyed (617) 617 Prototype IDs (0) 0 Alien Tech Used (0) 0 Bonus (0) 0 TOTAL SCORE: 1137 Bonus ------- None Cogmind --------- Core Integrity 0/250 Matter 300/300 Energy 191/250 System Corruption 0% Temperature Cool (36) Movement Treading (240) Ox1 Location -10/Subcaves Parts ------- > --- POWER (1) -------- Ion Engine > --- PROPULSION (2) --- Light Treads Wheel > --- UTILITY (2) ------ Large Storage Unit Core Shielding > --- WEAPON (2) ------- Riot Gun Particle Cannon > --- INVENTORY (15) --- Light Ion Engine Spiked Treads Subdweller Monowheel Subdweller Monowheel Huge Storage Unit Power Shielding Medium Armor Plating Beam Cannon Beam Cannon Particle Cannon Barrage Gun Mining Laser Hammer Hammer Piercing Trap Peak State ------------ > --- POWER ------------ Ion Engine > --- PROPULSION ------- Light Treads Wheel > --- UTILITY ---------- Large Storage Unit Core Shielding > --- WEAPON ----------- Riot Gun Particle Cannon > --- INVENTORY -------- Light Ion Engine Spiked Treads Subdweller Monowheel Subdweller Monowheel Huge Storage Unit Power Shielding Medium Armor Plating Beam Cannon Beam Cannon Particle Cannon Barrage Gun Mining Laser Hammer Hammer Piercing Trap [Rating: 12] Favorites ----------- Power Ion Engine Engine Ion Engine Propulsion Aluminum Leg Treads Light Treads Leg Aluminum Leg Wheel Wheel Utility Large Storage Unit Storage Large Storage Unit Protection Core Shielding Weapon Medium Laser Energy Gun Medium Laser Energy Cannon Particle Cannon Ballistic Gun Assault Rifle Impact Weapon Hammer Build | -11 -10 -10 ------- Run | Yrd Mat Sub Slots Evolved . | . . . Power . | . . . Propulsion . | . . . Utility . | . . . Weapon . | . . . Parts Attached 19 | . 10 9 Power 4 | . 3 1 Engine 4 | . 3 1 Core . | . . . Reactor . | . . . Propulsion 4 | . 1 3 Treads 1 | . . 1 Leg 1 | . 1 . Wheel 2 | . . 2 Hover . | . . . Flight . | . . . Utility 4 | . 4 . Device . | . . . Storage 2 | . 2 . Processor . | . . . Hackware . | . . . Protection 2 | . 2 . Artifact . | . . . Weapon 7 | . 2 5 Energy Gun 4 | . 2 2 Energy Cannon 1 | . . 1 Ballistic Gun 1 | . . 1 Ballistic Cannon . | . . . Launcher . | . . . Special Weapon . | . . . Impact Weapon 1 | . . 1 Slashing Weapon . | . . . Piercing Weapon . | . . . Special Melee Weapon . | . . . Unidentified Prototypes . | . . . Parts Lost 5 | . . 5 Power . | . . . Propulsion 3 | . . 3 Utility . | . . . Weapon 2 | . . 2 Highest Loss Streak 4 | . . 4 To Critical Strikes . | . . . Average Slot Usage (%) 93 | . 95 91 Engine 14 | . 14 14 Leg 18 | . 27 6 Wheel 6 | . . 13 Storage 14 | . 14 14 Protection 11 | . 10 14 Energy Gun 19 | . 27 9 Energy Cannon 4 | . . 10 Ballistic Gun 3 | . . 7 Peak Build Rating 12 | . 9 12 Average Rating 8 | . 7 9 On Entrance 6 | 6 6 8 Naked Turns . | . . . Heaviest Build 33 | 14 30 33 Greatest Support 26 | 20 20 26 Greatest Overweight (x) 3 | . 2 3 Average Overweight (x) 1 | . . 2 Largest Inventory Capacity 15 | . 15 15 Average Capacity 14 | . 13 15 Most Carried 15 | . 15 15 Average Carried 13 | . 13 13 Final Capacity 15 | 8 15 15 Final Carried 15 | 6 15 15 Class Distribution -------------------- 100% | Mutant Dominant Class ---------------- Mutant | -10/Materials Mutant | -10/Subcaves Resources | -11 -10 -10 ----------- Run | Yrd Mat Sub Matter Collected 469 | 191 105 173 Remotely . | . . . Salvage Created 897 | . 414 483 Parts 50 | . 25 25 Haulers Intercepted 2 | . 2 . Recyclers Shooed . | . . . Parts Field Recycled . | . . . Retrieved Matter . | . . . Parts Self-Destructed 7 | . . 7 Prevented . | . . . Kills | -11 -10 -10 ------- Run | Yrd Mat Sub Combat Hostiles Destroyed 19 | . 9 10 Guns 14 | . 9 5 Cannons 4 | . . 4 Classes Destroyed 7 | . 5 2 Worker 1 | . 1 . Hauler 2 | . 2 . Watcher 2 | . 2 . Swarmer 6 | . 6 . Grunt 3 | . 3 . Sentry 1 | . . 1 Subdweller 9 | . . 9 Best Kill Streak 4 | . 4 2 Combat Bots Only 3 | . 3 2 Max Kills in Single Turn 1 | . 1 1 Gunslinging . | . . . Exploded . | . . . Melee . | . . . Uniques/NPCs Destroyed . | . . . Combat | -11 -10 -10 -------- Run | Yrd Mat Sub Hostile Shots Fired 118 | . 43 75 Missed 40 | . 18 22 Damage Taken 1029 | . 189 840 Core 251 | . 50 201 Absorbed by Shields . | . . . Redirected to Shielding 43 | . . 43 Ignored by Resistances 296 | . 61 235 Core Remaining (%) 100 | 100 . . Volleys Fired 103 | . 36 67 Largest 2 | . 2 2 Hottest 118 | . 100 118 Shots Fired 203 | . 72 131 Gun 150 | . 72 78 Cannon 53 | . . 53 Launcher . | . . . Special . | . . . Kinetic 36 | . . 36 Thermal 150 | . 72 78 Explosive . | . . . Electromagnetic 17 | . . 17 Robot Hit Streak 19 | . 12 19 Robot Miss Streak 2 | . 2 2 Penetration Max . | . . . Secondary Targets 3 | . 2 1 Max Gunslinging Chain 1 | . 1 1 Shots Hit Robots 130 | . 53 77 Core Hits 43 | . 21 22 Critical Kills . | . . . Critical Parts Destroyed . | . . . Critical Strikes 5 | . 3 2 Burn 5 | . 3 2 Melee Attacks 3 | . . 3 Impact 3 | . . 3 Slashing . | . . . Piercing . | . . . Sneak Attacks . | . . . Combat Hostiles . | . . . Follow-up Attacks . | . . . Damage Inflicted 1783 | . 710 1073 Guns 1342 | . 700 642 Cannons 431 | . . 431 Explosions . | . . . Melee . | . . . Ramming 10 | . 10 . Kinetic 161 | . . 161 Thermal 1420 | . 700 720 Explosive . | . . . Electromagnetic 192 | . . 192 Impact . | . . . Slashing . | . . . Piercing . | . . . Highest Corruption . | . . . Average Corruption . | . . . Corruption Purged . | . . . Corruption Blocked . | . . . Overload Shots . | . . . Overflow Damage . | . . . Projectiles . | . . . Explosions . | . . . Melee . | . . . Knockbacks . | . . . Impact . | . . . Kinetic . | . . . Secondary . | . . . Self-Inflicted Damage . | . . . Shots . | . . . Rammed . | . . . Targets Rammed 2 | . 2 . Kicked 2 | . 2 . Crushed . | . . . Highest Temperature 336 | . 336 25 Average Temperature 95 | . 107 9 Received Heat Transfer 264 | . 84 180 Effects 1 | . 1 . Energy Bleed 1 | . 1 . Siege Activations . | . . . Robots Corrupted . | . . . Combat Hostiles . | . . . Parts Fried 1 | . . 1 Impact Corruptions . | . . . Robots Melted 1 | . . 1 Combat Hostiles 1 | . . 1 Parts Melted 6 | . 3 3 Heat Transferred 4070 | . 2294 1776 Parts Sabotaged . | . . . Parts Stolen . | . . . Parts Stripped . | . . . Power Chain Reactions . | . . . Alert | -11 -10 -10 ------- Run | Yrd Mat Sub Peak Influence 141 | . 141 . Initial . | . . . Average 30 | . 30 . Maximum Alert Level . | . . . Low Security (%) 100 | . 100 . Level 1 . | . . . Level 2 . | . . . Level 3 . | . . . Level 4 . | . . . Level 5 . | . . . High Security . | . . . Max Security . | . . . Squads Dispatched . | . . . Investigation . | . . . Extermination . | . . . Reinforcement . | . . . Assault . | . . . Garrison . | . . . Intercept . | . . . Searches Triggered . | . . . Construction Impeded . | . . . Haulers Reinforced . | . . . Active Scanning Responses . | . . . Cargo Convoy Interrupts . | . . . Stealth | -11 -10 -10 --------- Run | Yrd Mat Sub Distress Signals . | . . . Communications Jammed . | . . . Distress Signals . | . . . Times Spotted 28 | . 17 11 Peak Tracking Total 3 | . 3 2 Tactical Retreats 1 | . 1 . Traps | -11 -10 -10 ------- Run | Yrd Mat Sub Traps Triggered 4 | . 4 . Indirectly . | . . . Trap Hack Attempts . | . . . Triggered . | . . . Disarmed . | . . . Reprogrammed . | . . . Reused . | . . . Traps Extracted . | . . . Installed . | . . . Triggered 2 | . . 2 Most Traps Carried 1 | . . 1 Machines | -11 -10 -10 ---------- Run | Yrd Mat Sub Machines Disabled . | . . . Max in Single Turn . | . . . Machines Repaired . | . . . Machines Dismantled . | . . . Machines Sabotaged . | . . . Overloaded Fab Kills . | . . . Hacking | -11 -10 -10 --------- Run | Yrd Mat Sub Machines Accessed 2 | . 2 . Terminals 2 | . 2 . Fabricators . | . . . Repair Stations . | . . . Recycling Units . | . . . Scanalyzers . | . . . Garrison Access . | . . . Total Hacks 9 | . 9 . Successful 4 | . 4 . Failed 4 | . 4 . Catastrophic . | . . . Database Lockouts 1 | . 1 . Manual 9 | . 9 . Terminals 9 | . 9 . Fabricators . | . . . Repair Stations . | . . . Recycling Units . | . . . Scanalyzers . | . . . Garrison Access . | . . . Terminal Hacks 2 | . 2 . Robot Analysis 2 | . 2 . Fabricator Hacks . | . . . Repair Station Hacks . | . . . Recycling Unit Hacks . | . . . Scanalyzer . | . . . Garrison Access Hacks . | . . . Unauthorized Hacks 2 | . 2 . Terminals 2 | . 2 . Botnet 2 | . 2 . Fabricators . | . . . Repair Stations . | . . . Recycling Units . | . . . Scanalyzers . | . . . Garrison Access . | . . . Data Cores Recovered . | . . . Used . | . . . Hacking Detections 2 | . 2 . Full Trace Events . | . . . Feedback Events . | . . . Feedback Blocked . | . . . Robot Schematics Acquired . | . . . Robots Built . | . . . Authchips . | . . . Time . | . . . Total Robot Build Rating . | . . . Part Schematics Acquired . | . . . Parts Built . | . . . Authchips . | . . . Time . | . . . Total Part Build Rating . | . . . Parts Repaired . | . . . Time . | . . . Parts Recycled . | . . . Recycled Matter . | . . . Retrieved Matter . | . . . Retrieved Components . | . . . Parts Scanalyzed . | . . . Part Schematics Acquired . | . . . Parts Damaged . | . . . Bothacking | -11 -10 -10 ------------ Run | Yrd Mat Sub Used RIF Installer . | . . . Robots Hacked . | . . . Non-combat . | . . . Combat . | . . . Robot Hacks Applied . | . . . Relay Couplers Released . | . . . Fabnet Peak Effective % . | . . . Robots Rewired . | . . . Allies Hacked . | . . . Hacks Repelled . | . . . Allies | -11 -10 -10 -------- Run | Yrd Mat Sub Total Allies . | . . . Largest Group . | . . . Highest-Rated Group . | . . . Highest-Rated Ally . | . . . Total Orders . | . . . Ally Attacks . | . . . Total Damage . | . . . Kills . | . . . Allies Corrupted . | . . . Allies Melted . | . . . Intel | -11 -10 -10 ------- Run | Yrd Mat Sub Robot Analysis Total 2 | . 2 . Derelict Logs Recovered 1 | . . 1 Drone Launches . | . . . Drone Recoveries . | . . . Exploration | -11 -10 -10 ------------- Run | Yrd Mat Sub Turns Passed 3368 | . 1837 1531 Spaces Moved 1882 | 1 884 997 Core . | . . . Treads . | . . . Legs 1053 | 1 884 168 Wheels 829 | . . 829 Hover . | . . . Flight . | . . . Fastest Speed 105 | 120 120 105 Average Speed 158 | 120 189 130 Slowest Speed 260 | 120 260 190 Overloaded Moves . | . . . Propulsion Burnouts . | . . . Robots Hopped . | . . . Cave-ins Triggered . | . . . Exploration Rate (%) 45 | 1 94 42 Regions Visited 2 Branch Regions 1 Pre-discovered Areas 1 | . . 1 Known Exits Taken . | . . . Unknown Exits Taken 2 | 1 1 . Scrap Searched 6 | . . 6 Spaces Dug . | . . . Terrain Destroyed . | . . . Melee . | . . . Projectile . | . . . AOE . | . . . Terrain Rammed . | . . . Walls Destroyed . | . . . Machines Disabled . | . . . Actions | -11 -10 -10 --------- Run | Yrd Mat Sub Total 2061 | . 973 1088 Wait 28 | . 25 3 Move 1880 | . 883 997 Hop . | . . . Pick Up 17 | . 11 6 Fast Attach 9 | . 7 2 Attach 4 | . . 4 Detach . | . . . Swap 6 | . 3 3 Drop 9 | . 6 3 Fire 103 | . 36 67 Melee 3 | . . 3 Ram . | . . . Kick 2 | . 2 . Crush . | . . . Escape Stasis . | . . . Rewire . | . . . Trap . | . . . Miscellaneous . | . . . Route ------- -11/Scrapyard -10/Materials (discovered 6 exits: [*Mat x3] / [*Min x2] / [*Sub]) -10/Subcaves (discovered 1 exit: [*Mat]) History --------- Turn | Location | Event 1 | -11/Scrapyard | Discovered new exit (range 0) 1 | -11/Scrapyard | Entered Materials 99 | -10/Materials | Discovered new exit (range 13) 309 | -10/Materials | Build established: Mutant 479 | -10/Materials | Discovered new exit (range 16) 640 | -10/Materials | Discovered new exit (range 5) 934 | -10/Materials | Discovered new exit (range 15) 1223 | -10/Materials | Discovered new exit (range 8) 1386 | -10/Materials | Discovered new exit (range 13) 1518 | -10/Materials | Central database locked down 1838 | -10/Materials | Entered Subcaves 2043 | -10/Subcaves | Shifting Twisted Machinery released Battle Rifle 2100 | -10/Subcaves | Shifting Twisted Machinery released Sub. Monowheel 2210 | -10/Subcaves | Core integrity fell below 50% 2239 | -10/Subcaves | Lost 4 parts (2n2w) 2568 | -10/Subcaves | Core integrity fell below 20% 2990 | -10/Subcaves | Shifting Twisted Machinery released Riot Gun 2994 | -10/Subcaves | Shifting Twisted Machinery released Barrage Gun 3132 | -10/Subcaves | Learned location of Storage (-9) 3147 | -10/Subcaves | Disturbed a concealed Subdweller 3315 | -10/Subcaves | Discovered new exit (range 7) 3362 | -10/Subcaves | A Subdweller sparked back to life 3362 | -10/Subcaves | A Subdweller sparked back to life 3362 | -10/Subcaves | A Subdweller sparked back to life 3369 | -10/Subcaves | Destroyed by WL-D3X(R) with Subdweller Laser Last Messages --------------- 03265_ Found Sub. Power Source. 03265_ Found 70 Matter. 03266_ Searching scrap... 03266_ Found Mak. System Restoration Module. 03266_ Found Scrap Shield. 03266_ Found 39 Matter. 03315_ EXIT=FOUND 03335_ Y-45 Defender destroyed. 03342_ Lgt. Treads fries itself beyond repair. 03342_ Acquired Lgt. Treads. 03343_ Acquired 10 matter. 03350_ Corrupted Imp. Ion Engine fries itself beyond repair. 03362_ N9-2W5(R) creaks and sparks as it begins to move. 03362_ WL-D3X(R) creaks and sparks as it begins to move. 03362_ 5C-ZIY(R) creaks and sparks as it begins to move. 03365_ N9-2W5(R) destroyed. Map ----- +----------------------------------------------------+ | ???????????????????# ## ##????????????????? | | ???????????????????# ##? #????????????????? | | ???????????????????# # ##????????????????? | | ???????????????????## # #?????????????????? | | ??????????????????## #?????????????????? | | ??????????????????# ###???????????????? | | ??????????????????# < #???????????????? | | ??????????????##### #???????????????? | | ??????????????# ######## #??????????????? | | ??????????????## ####??????##??????????????? | | ???????????????# #??????????????????????? | | ???????????????# #??????????????????????? | | ??????????????## % #??????????????????????? | | ??????????????# ##?????????????????????? | | ??????????????## ##????????????????????? | | ???????????????# #???#????????????????? | | ???????????????# ##?? #????????????????? | | ???????????????# ##?? #????????????????? | | ???????????????# ###?? #?????????????????? | | ???????????????## ##???# ##????????????????? | | ???????????????# ##### ## ???????????? | | ??????????????## ## ???????????? | | ??????????????# ????????????? | | ??????????????# ### ????????????? | | ??????????????## #??????????????????????? | | ???????????????## @#??????????????????????? | | ????????????????#### #?????????????????????? | | ??????????????????<%!# #?????????????????????? | | ????????????????? &RR #?????????????????????? | | ????????????????# < ##?????????????????????? | | ????????????????# #??????????????????????? | | ???????????????? < " ??????????????????????? | | ???????????????## ??????????????????????? | | ???????????????? ??????????????????????? | | ???????????????#####? #?????????????????????? | | ????????????????????? ?????????????????????? | | ?????????????????????? ?????????????????????? | | ??????????????????????##?????????????????????? | | ?????????????????????????????????????????????? | | ?????????????????????????????????????????????? | | ?????????????????????????????????????????????? | | ?????????????????????????????????????????????? | | ?????????????????????????????????????????????? | | ?????????????????????????????????????????????? | | ?????????????????????????????????????????????? | | ?????????????????????????????????????????????? | | ?????????????????????????????????????????????? | | ?????????????????????????????????????????????? | | ?????????????????????????????????????????????? | | ?????????????????????????????????????????????? | +----------------------------------------------------+ Best States ------------- Heat Dissipation 25 Energy Generation 10 Energy Capacity 250 Matter Stores 300 Matter Capacity 300 Sight Range 16 Terrain Scan Density 10 Armor Coverage 225 Resistance: KI 20 Resistance: TH 20 Resistance: EX 20 Resistance: EM 20 Resistance: I 20 Resistance: S 20 Resistance: P 20 Core Shielding 20 Evasion (%) 45 Offensive Hacking 10 Item Schematics ----------------- None Robot Schematics ------------------ None Fabricated ------------ Nothing Alien Tech Used ----------------- None Achievements -------------- None Challenges ------------ None Game ------ Seed GrenadeSeismicCutter Manual? 0 Play Time 00:16:07 Cumulative 128.0 hours Start 2024.08.08 @ 07:12:56 End 2024.08.08 @ 07:26:40 Sessions 1 Manual Loads 0 Difficulty Adventurer Special Mode None Game No. 177 Rogue 0 Adventurer 177 Explorer 0 Win Type - Total 0 Types 0/0/0/0/0/0/0/0/0 Lore% 30 Gallery% 50 Achievement% 37 Wizard Run 0 Options --------- Layout 2 ASCII 0 Keyboard 0 Movement Mouse Keybinds 0 Fullscreen 2 Font 48/Terminus Map View 50x44 Zoom Use 0% Tactical HUD 1 Map Filters NONE Filters NONE Steam 1 RUN: 06809a42-b5ab-47be-969c-8702585242bc